bitfinex/quotes_BTCUSD_20241117
["timestamp","ask_amount","ask_price","bid_price","bid_amount"]
[1731850676744,0.110311,90653.0,90648.0,0.110316]
[1731850676951,0.110308,90655.0,90651.0,0.00182166]
[1731850677161,0.110308,90655.0,90650.0,0.110314]
[1731850677633,0.110308,90655.0,90651.0,0.00182511]
[1731850677850,0.110308,90655.0,90650.0,0.110313]
[1731850678083,0.188406,90657.0,90652.0,0.00182338]
[1731850678327,0.0781,90657.0,90652.0,0.110311]
[1731850678544,0.0781,90657.0,90654.0,0.110308]
[1731850678780,0.188406,90657.0,90653.0,0.00182511]
[1731850679005,0.0781,90657.0,90655.0,0.00182166]
[1731850679227,0.0781,90657.0,90653.0,0.11031]
[1731850679478,0.0781,90657.0,90656.0,0.00181994]
[1731850679683,0.0781,90657.0,90653.0,0.11031]
[1731850679909,0.0781,90657.0,90656.0,0.00181994]
[1731850680173,0.110302,90660.0,90649.0,0.220631]
[1731850680424,0.0781,90665.0,90660.0,0.110301]
[1731850680663,0.0781,90665.0,90654.0,0.220618]
[1731850680664,0.16548346,90662.0,90658.0,0.110303]
[1731850680866,0.110297,90664.0,90661.0,0.00182511]
[1731850681077,0.0801,90665.0,90650.0,0.10906255]
[1731850681284,0.110297,90664.0,90662.0,0.00182166]
[1731850681538,0.0781,90665.0,90653.0,0.220621]
[1731850681768,0.0524,90670.0,90666.0,0.110294]
[1731850682006,0.16269,90670.0,90664.0,0.110297]
[1731850682215,0.16269,90670.0,90661.0,0.2206]
[1731850682216,0.162691,90670.0,90667.0,0.00181701]
[1731850682461,0.162691,90670.0,90663.0,0.110298]
[1731850682716,0.0474,90670.0,90669.0,0.110291]
[1731850683426,0.046942,90670.0,90669.0,0.110291]
[1731850684863,0.046942,90670.0,90669.0,0.21935355]
[1731850687842,0.046942,90670.0,90669.0,0.22155906]
[1731850688139,0.046942,90670.0,90669.0,0.21935355]
[1731850688574,0.001711,90688.0,90669.0,0.21935355]
[1731850688810,0.13642546,90684.0,90683.0,0.110274]
[1731850689268,0.001711,90688.0,90687.0,0.110269]
[1731850690652,0.001711,90688.0,90682.0,0.220548]
[1731850690861,0.001711,90688.0,90687.0,0.110269]
[1731850691293,0.001711,90688.0,90670.0,0.0478]
[1731850691294,0.110272,90685.0,90670.0,0.0478]
[1731850691502,0.110272,90685.0,90668.0,0.16548346]
[1731850691503,0.110272,90685.0,90673.0,0.220572]
[1731850691737,0.110272,90685.0,90679.0,0.110278]
[1731850691946,0.110272,90685.0,90674.0,0.32963255]
[1731850691947,0.001711,90688.0,90674.0,0.10906255]
[1731850692161,0.001711,90688.0,90684.0,0.110272]
[1731850692855,0.001711,90688.0,90685.0,0.110271]
[1731850693109,0.001711,90688.0,90683.0,0.220548]
[1731850693543,0.001711,90688.0,90685.0,0.11027]
[1731850693992,0.001711,90688.0,90683.0,0.220548]
[1731850694230,0.001711,90688.0,90686.0,0.11027]
[1731850694486,0.001711,90688.0,90677.0,0.32962455]
[1731850694706,0.001711,90688.0,90685.0,0.110271]
[1731850695103,0.0017116,90687.0,90685.0,0.110271]
[1731850695836,0.0017116,90687.0,90680.0,0.220555]
[1731850696050,0.0017116,90687.0,90686.0,0.11027]
[1731850698149,0.0017116,90687.0,90686.0,0.21933255]
[1731850701729,0.0017116,90687.0,90686.0,0.22153757]
[1731850702651,0.0017116,90687.0,90686.0,0.44653255]
[1731850703148,0.0017116,90687.0,90686.0,0.44153255]
[1731850703589,0.0017116,90687.0,90686.0,0.31933255]
[1731850703832,0.09461706,90697.0,90696.0,0.110258]
[1731850704044,0.001711,90702.0,90701.0,0.110252]
[1731850704255,0.001711,90702.0,90701.0,0.21931455]
[1731850704499,0.001711,90702.0,90701.0,0.22151937]
[1731850704710,0.001711,90702.0,90701.0,0.21931455]
[1731850704921,0.001711,90702.0,90701.0,0.10906255]
[1731850705145,0.001711,90702.0,90701.0,0.21931455]
[1731850707877,0.001711,90702.0,90701.0,0.10906255]
[1731850708324,0.001711,90702.0,90701.0,0.21931455]
[1731850710544,0.005,90701.0,90684.0,0.1111265]
[1731850710741,0.005,90698.0,90692.0,0.16548346]
[1731850710952,0.0819,90700.0,90685.0,0.10906255]
[1731850710953,0.0819,90700.0,90699.0,0.110254]
[1731850711659,0.001711,90702.0,90699.0,0.110254]
[1731850712132,0.001711,90702.0,90700.0,0.110253]
[1731850712348,0.220504,90701.0,90688.0,0.10906255]
[1731850712561,0.001711,90702.0,90690.0,0.220531]
[1731850712771,0.110257,90697.0,90691.0,0.10906255]
[1731850712986,0.110256,90698.0,90693.0,0.110261]
[1731850713209,0.16548346,90696.0,90684.0,0.0008555]
[1731850713426,0.007,90698.0,90685.0,0.21933355]
[1731850713427,0.11026,90694.0,90685.0,0.21933355]
[1731850713689,0.11026,90694.0,90685.0,0.10906255]
[1731850713690,0.220521,90694.0,90685.0,0.10906255]
[1731850713914,0.220516,90696.0,90685.0,0.10906255]
[1731850714119,0.110265,90691.0,90685.0,0.10906255]
[1731850714328,0.110267,90689.0,90685.0,0.10906255]
[1731850714555,0.220529,90691.0,90684.0,0.0008555]
[1731850714818,0.110271,90685.0,90684.0,0.0008555]
[1731850717541,0.192571,90685.0,90684.0,0.0008555]
[1731850717792,0.20278212,90685.0,90684.0,0.0008555]
[1731850718000,0.20478212,90685.0,90684.0,0.0008555]
[1731850718505,0.194571,90685.0,90684.0,0.0008555]
[1731850718821,0.0843,90685.0,90684.0,0.0008555]
[1731850718956,0.194571,90685.0,90684.0,0.0008555]
[1731850719160,0.20478212,90685.0,90684.0,0.0008555]
[1731850719386,0.194571,90685.0,90684.0,0.0008555]
[1731850723212,0.187309,90654.0,90653.0,0.0008558]
[1731850723685,0.189309,90654.0,90653.0,0.0008558]
[1731850727590,0.187309,90654.0,90653.0,0.0008558]
[1731850728894,0.077,90654.0,90653.0,0.0008558]
[1731850729122,0.110309,90654.0,90653.0,0.0008558]
[1731850729346,0.112309,90654.0,90653.0,0.0008558]
[1731850729556,0.110309,90654.0,90653.0,0.0008558]
[1731850729778,0.238809,90654.0,90653.0,0.0008558]
[1731850730309,0.44787155,90654.0,90653.0,0.0008558]
[1731850731205,0.44587155,90654.0,90653.0,0.0008558]
[1731850731422,0.44787155,90654.0,90653.0,0.0008558]
[1731850732288,0.44587155,90654.0,90653.0,0.0008558]
[1731850732740,0.44787155,90654.0,90653.0,0.0008558]
[1731850733407,0.47887155,90654.0,90653.0,0.0008558]
[1731850733628,0.40487155,90654.0,90653.0,0.0008558]
[1731850733856,0.48087155,90654.0,90653.0,0.0008558]
[1731850734563,0.188037,90631.0,90630.0,0.000856]
[1731850735008,0.188037,90631.0,90630.0,0.00273352]
[1731850735217,0.188037,90631.0,90630.0,0.000856]
[1731850736377,0.186037,90631.0,90630.0,0.000856]
[1731850736621,0.0757,90644.0,90630.0,0.000856]
[1731850736859,0.110335,90633.0,90630.0,0.000856]
[1731850737101,0.002,90642.0,90630.0,0.000856]
[1731850737340,0.110337,90631.0,90630.0,0.000856]
[1731850738256,0.1,90643.0,90630.0,0.000856]
[1731850738470,0.0757,90644.0,90630.0,0.000856]
[1731850738471,0.16548346,90642.0,90630.0,0.000856]
[1731850738891,0.0777,90644.0,90630.0,0.000856]
[1731850739165,0.006787,90644.0,90630.0,0.111194]
[1731850739374,0.006787,90644.0,90630.0,0.000856]
[1731850739799,0.16548346,90643.0,90630.0,0.000856]
[1731850740019,0.110337,90631.0,90630.0,0.000856]
[1731850740241,0.220664,90636.0,90630.0,0.000856]
[1731850740456,0.11033,90637.0,90630.0,0.000856]
[1731850740666,0.220645,90643.0,90630.0,0.000856]
[1731850741310,0.110337,90631.0,90630.0,0.000856]
[1731850742423,0.112337,90631.0,90630.0,0.000856]
[1731850743324,0.110337,90631.0,90630.0,0.000856]
[1731850743757,0.112337,90631.0,90630.0,0.000856]
[1731850744211,0.110337,90631.0,90630.0,0.000856]
[1731850744423,0.112337,90631.0,90630.0,0.000856]
[1731850744658,0.02304724,90644.0,90630.0,0.000856]
[1731850744917,0.02712336,90644.0,90630.0,0.000856]
[1731850745119,0.1,90645.0,90631.0,0.16548346]
[1731850745120,0.02233636,90645.0,90631.0,0.16548346]
[1731850745348,0.02033636,90651.0,90631.0,0.35785252]
[1731850745593,0.16548346,90647.0,90641.0,0.22065]
[1731850745834,0.16548346,90647.0,90631.0,0.0811]
[1731850746040,0.110322,90643.0,90642.0,0.00187602]
[1731850746470,0.110325,90642.0,90635.0,0.110332]
[1731850746691,0.110325,90641.0,90635.0,0.110332]
[1731850746921,0.002,90652.0,90632.0,0.10906255]
[1731850747152,0.16548346,90647.0,90632.0,0.21939755]
[1731850747363,9.0,90654.0,90632.0,0.10906255]
[1731850747608,0.220621,90653.0,90640.0,0.110325]
[1731850747818,0.110321,90645.0,90638.0,0.110328]
[1731850748031,0.11032,90646.0,90639.0,0.110327]
[1731850748442,0.110321,90645.0,90639.0,0.110327]
[1731850748653,9.0,90654.0,90633.0,0.22067]
[1731850748860,0.110315,90650.0,90643.0,0.110322]
[1731850749085,9.0,90654.0,90648.0,0.110315]
[1731850749364,9.0,90654.0,90643.0,0.110322]
[1731850749365,0.110315,90650.0,90643.0,0.110322]
[1731850749580,9.0,90654.0,90635.0,0.0811]
[1731850749581,9.0,90654.0,90638.0,0.16548346]
[1731850749788,9.0,90654.0,90648.0,0.110316]
[1731850749996,9.0,90654.0,90639.0,0.10906255]
[1731850750210,9.110309,90654.0,90646.0,0.220636]
[1731850750428,9.110309,90654.0,90648.0,0.110316]
[1731850750636,9.0,90654.0,90651.0,0.110312]
[1731850750869,9.0,90654.0,90653.0,0.11031]
[1731850752908,9.0,90654.0,90653.0,0.21937255]
[1731850753385,9.0,90654.0,90653.0,0.36537255]
[1731850753834,9.0,90654.0,90653.0,0.40928197]
[1731850754042,9.0017136,90654.0,90653.0,0.40928197]
[1731850754953,9.0017136,90654.0,90650.0,0.220628]
[1731850755208,9.0017136,90654.0,90651.0,0.10906255]
[1731850755426,9.1120236,90654.0,90651.0,0.10906255]
[1731850755651,0.220621,90653.0,90636.0,0.0772]
[1731850755925,0.110319,90647.0,90637.0,0.32972255]
[1731850756124,0.110321,90645.0,90637.0,0.11149154]
[1731850756331,0.0754,90652.0,90637.0,0.11149154]
[1731850756332,0.220628,90650.0,90637.0,0.11149154]
[1731850756571,0.0754,90652.0,90637.0,0.11149154]
[1731850756818,0.0754,90652.0,90639.0,0.220655]
[1731850757081,0.110323,90643.0,90640.0,0.10906255]
[1731850757301,0.110323,90643.0,90631.0,0.220675]
[1731850757302,0.220628,90650.0,90630.0,0.000856]
[1731850757532,0.110331,90637.0,90630.0,0.111194]
[1731850757739,0.002,90648.0,90631.0,0.00208889]
[1731850757985,0.110336,90632.0,90631.0,0.00208889]
[1731850758253,0.110336,90632.0,90630.0,0.000856]
[1731850758254,0.110337,90631.0,90630.0,0.000856]
[1731850759133,0.13070711,90631.0,90630.0,0.000856]
[1731850759384,0.25499087,90631.0,90630.0,0.000856]
[1731850759608,0.30378844,90631.0,90630.0,0.000856]
[1731850759815,0.31268489,90631.0,90630.0,0.000856]
[1731850760058,0.53554081,90631.0,90630.0,0.000856]
[1731850760512,0.11035,90620.0,90619.0,0.16548346]
[1731850760733,0.20029126,90620.0,90619.0,0.16548346]
[1731850760975,0.110363,90610.0,90609.0,0.0017108]
[1731850761198,0.20030426,90610.0,90609.0,0.0017108]
[1731850761428,0.08304481,90610.0,90609.0,0.00359699]
[1731850761672,0.08304481,90610.0,90594.0,0.16548346]
[1731850761932,0.110369,90605.0,90594.0,0.16548346]
[1731850762157,0.002,90616.0,90594.0,0.16548346]
[1731850762158,0.110372,90603.0,90597.0,0.00191551]
[1731850762384,0.110372,90603.0,90593.0,0.0008561]
[1731850762385,0.28999644,90602.0,90593.0,0.0008561]
[1731850762631,0.110378,90597.0,90593.0,0.0008561]
[1731850762844,0.17962944,90597.0,90593.0,0.0008561]
[1731850763088,0.20032518,90597.0,90593.0,0.0008561]
[1731850763544,0.23289812,90597.0,90593.0,0.0008561]
[1731850763771,0.20232518,90597.0,90593.0,0.0008561]
[1731850763994,0.20032518,90597.0,90593.0,0.0008561]
[1731850764463,0.20232518,90597.0,90593.0,0.0008561]
[1731850765149,0.20032518,90597.0,90593.0,0.0008561]
[1731850765339,0.30938773,90597.0,90593.0,0.0008561]
[1731850765577,0.08994718,90597.0,90593.0,0.0008561]
[1731850765792,0.20032518,90597.0,90593.0,0.0008561]
[1731850766213,0.41938773,90597.0,90593.0,0.0008561]
[1731850766442,0.55048773,90597.0,90593.0,0.0008561]
[1731850766660,0.293295,90583.0,90582.0,0.0008565]
[1731850766873,0.54050473,90583.0,90582.0,0.0008565]
[1731850767102,0.47874952,90583.0,90582.0,0.0008565]
[1731850767329,0.54527235,90583.0,90582.0,0.0008565]
[1731850767553,0.55027235,90583.0,90582.0,0.0008565]
[1731850767797,0.2224,90579.0,90573.0,0.0008555]
[1731850768028,0.41917735,90579.0,90573.0,0.0008555]
[1731850768270,0.11042,90563.0,90560.0,4.439e-05]
[1731850768501,0.32948255,90563.0,90560.0,4.439e-05]
[1731850768717,0.54829735,90563.0,90560.0,4.439e-05]
[1731850768938,0.58692857,90563.0,90562.0,0.30313839]
[1731850769203,0.58684393,90563.0,90562.0,0.27867845]
[1731850769405,0.58684393,90563.0,90558.0,0.02141896]
[1731850769406,0.245425,90559.0,90558.0,0.02141896]
[1731850769668,0.245425,90559.0,90548.0,0.03081448]
[1731850769669,0.122437,90549.0,90548.0,0.03081448]
[1731850769860,0.245445,90542.0,90541.0,0.14461758]
[1731850770096,0.245449,90539.0,90538.0,0.14392647]
[1731850770317,0.245449,90539.0,90531.0,0.17991259]
[1731850770318,0.222458,90532.0,90531.0,0.17991259]
[1731850770522,0.245461,90529.0,90528.0,0.01998596]
[1731850770769,0.245461,90529.0,90424.0,0.005]
[1731850771007,0.245461,90529.0,90400.0,0.41857039]
[1731850771008,0.005,90466.0,90465.0,0.11064914]
[1731850771249,0.005,90462.0,90443.0,0.02074833]
[1731850771455,0.11423913,90461.0,90429.0,0.00011015]
[1731850771677,0.11423913,90461.0,90430.0,0.16548346]
[1731850771678,0.13451645,90460.0,90430.0,0.16548346]
[1731850771929,0.13451645,90460.0,90431.0,0.02098552]
[1731850771930,0.3162933,90459.0,90431.0,0.02098552]
[1731850772181,0.005,90445.0,90435.0,0.221152]
[1731850772419,0.16548346,90438.0,90436.0,0.02212621]
[1731850772628,0.0897148,90444.0,90433.0,0.110579]
[1731850772629,0.01,90434.0,90433.0,0.110579]
[1731850772843,0.08428701,90434.0,90422.0,0.221185]
[1731850773072,0.08428701,90434.0,90421.0,0.110593]
[1731850773073,0.01629339,90433.0,90423.0,0.00221154]
[1731850773333,0.01629339,90433.0,90387.0,0.2]
[1731850773334,0.005,90427.0,90387.0,0.2]
[1731850773560,0.005,90412.0,90411.0,0.16548346]
[1731850773764,0.00221125,90426.0,90404.0,0.00011014]
[1731850773765,0.005,90405.0,90404.0,0.00011014]
[1731850774021,0.005,90391.0,90390.0,0.00221241]
[1731850774229,0.005,90378.0,90377.0,0.2]
[1731850774442,0.03744372,90378.0,90377.0,0.2]
[1731850774670,0.174258,90368.0,90367.0,0.19803729]
[1731850774889,0.40908712,90368.0,90367.0,0.19803729]
[1731850775140,0.35327587,90368.0,90367.0,0.19803729]
[1731850775356,0.33654023,90368.0,90367.0,0.19799729]
[1731850775607,0.33654023,90368.0,90367.0,0.20087425]
[1731850775848,0.33560278,90368.0,90367.0,0.1541192]
[1731850776085,0.22154023,90368.0,90367.0,0.1541192]
[1731850776300,0.12761787,90368.0,90363.0,0.221329]
[1731850776534,0.005,90367.0,90366.0,0.110661]
[1731850776768,0.12761787,90368.0,90364.0,0.05494609]
[1731850776769,0.06109504,90368.0,90364.0,0.05494609]
[1731850776994,0.005,90366.0,90365.0,0.05734619]
[1731850777233,0.35595507,90366.0,90365.0,0.05734619]
[1731850777683,0.35095507,90366.0,90365.0,0.05734619]
[1731850777898,0.115667,90361.0,90360.0,0.29999999]
[1731850778113,0.35596107,90361.0,90360.0,0.29999999]
[1731850778794,0.13623152,90361.0,90360.0,0.29999999]
[1731850779422,0.13123152,90361.0,90360.0,0.29999999]
[1731850779640,0.06513648,90361.0,90360.0,0.48366799]
[1731850779937,0.06513648,90361.0,90360.0,0.59273054]
[1731850780301,0.03140028,90378.0,90377.0,0.110647]
[1731850780509,0.005,90391.0,90383.0,0.13364]
[1731850780698,0.03138676,90389.0,90383.0,0.169133]
[1731850780945,0.03138676,90387.0,90383.0,0.13364]
[1731850781163,0.03138676,90387.0,90378.0,0.221292]
[1731850781164,0.03138676,90387.0,90378.0,0.023]
[1731850781379,0.03138676,90385.0,90384.0,0.133639]
[1731850781598,0.005,90390.0,90384.0,0.023]
[1731850781599,0.03137769,90387.0,90384.0,0.023]
[1731850781818,0.03137769,90387.0,90386.0,0.133636]
[1731850782036,0.03137769,90389.0,90388.0,0.110634]
[1731850782265,0.03137769,90395.0,90391.0,0.221259]
[1731850782448,0.005,90379.0,90378.0,0.001]
[1731850782913,0.01,90379.0,90378.0,0.001]
[1731850783126,0.3419188,90379.0,90378.0,0.001]
[1731850783338,0.33970755,90379.0,90378.0,0.001]
[1731850783588,0.01,90361.0,90357.0,0.16548346]
[1731850783846,0.005,90361.0,90360.0,0.36654833]
[1731850784289,0.01,90361.0,90360.0,0.47721633]
[1731850784505,0.11906255,90361.0,90360.0,0.29999999]
[1731850784965,0.2319408,90361.0,90360.0,0.29999999]
[1731850785176,0.22972955,90361.0,90360.0,0.29999999]
[1731850786270,0.11906255,90361.0,90360.0,0.29999999]
[1731850786483,0.01,90361.0,90360.0,0.34999999]
[1731850787371,0.01,90361.0,90360.0,0.46066799]
[1731850787861,0.00221125,90365.0,90364.0,0.110663]
[1731850788069,0.01,90368.0,90367.0,0.110659]
[1731850788509,0.005,90368.0,90367.0,0.110659]
[1731850788719,0.10221125,90376.0,90364.0,0.0801331]
[1731850788720,0.01,90373.0,90366.0,0.023]
[1731850788930,0.01221125,90372.0,90371.0,0.110654]
[1731850789144,0.01221125,90372.0,90371.0,0.01988005]
[1731850789614,0.01221125,90372.0,90360.0,0.29999999]
[1731850789615,0.01,90361.0,90360.0,0.29999999]
[1731850790365,0.16442046,90361.0,90360.0,0.30085949]
[1731850790585,0.27508746,90361.0,90360.0,0.30085949]
[1731850790793,0.27680646,90361.0,90360.0,0.30085949]
[1731850791222,0.27901771,90361.0,90360.0,0.30384376]
[1731850791463,0.27680646,90361.0,90360.0,0.30384376]
[1731850791645,0.27680646,90361.0,90360.0,0.27894129]
[1731850792367,0.2965627,90361.0,90360.0,0.27894129]
[1731850793024,0.2965627,90361.0,90360.0,0.07238452]
[1731850793268,0.07683315,90361.0,90360.0,0.07238452]
[1731850793488,0.06683315,90361.0,90360.0,0.18305252]
[1731850793732,0.16769471,90377.0,90360.0,0.18305252]
[1731850793733,0.005,90373.0,90372.0,0.110653]
[1731850793961,0.18987871,90377.0,90360.0,0.09538452]
[1731850793962,0.13100318,90377.0,90373.0,0.0331969]
[1731850794203,0.005,90377.0,90376.0,0.110648]
[1731850794437,0.005,90377.0,90362.0,0.00221309]
[1731850794438,0.005,90371.0,90362.0,0.023]
[1731850794651,0.110638,90385.0,90362.0,0.023]
[1731850794652,0.005,90380.0,90365.0,0.221324]
[1731850794890,0.19727649,90379.0,90367.0,0.023]
[1731850795114,0.17048346,90379.0,90378.0,0.110646]
[1731850795413,0.19727603,90379.0,90378.0,0.133646]
[1731850795654,0.03679257,90379.0,90378.0,0.133646]
[1731850795878,0.03179257,90379.0,90378.0,0.17135322]
[1731850796116,0.03179257,90379.0,90378.0,0.27820285]
[1731850796117,0.02673164,90379.0,90378.0,0.27820285]
[1731850796351,0.005,90399.0,90394.0,0.221251]
[1731850796614,0.03172414,90406.0,90395.0,0.023]
[1731850796820,0.005,90409.0,90402.0,0.133617]
[1731850797033,0.005,90412.0,90402.0,0.133617]
[1731850797243,0.005,90407.0,90404.0,0.023]
[1731850797455,0.221185,90422.0,90404.0,0.023]
[1731850797456,0.03172414,90408.0,90407.0,0.221221]
[1731850797676,0.005,90408.0,90407.0,0.023]
[1731850797882,0.03672414,90408.0,90407.0,0.04986611]
[1731850798092,0.115609,90408.0,90407.0,0.02686611]
[1731850798299,0.005,90401.0,90395.0,0.023]
[1731850798551,0.110625,90395.0,90394.0,0.023]
[1731850798808,0.110625,90395.0,90369.0,0.1257]
[1731850798809,0.115641,90382.0,90369.0,0.1257]
[1731850799030,0.115641,90382.0,90381.0,0.18203181]
[1731850799252,0.115641,90382.0,90381.0,0.01654835]
[1731850799490,0.005,90382.0,90369.0,0.1257]
[1731850799705,0.005,90377.0,90369.0,0.1257]
[1731850799892,0.005,90377.0,90372.0,0.00296848]
[1731850800153,0.005,90377.0,90374.0,0.023]
[1731850800376,0.110649,90376.0,90373.0,0.00297311]
[1731850800610,0.005,90377.0,90369.0,0.1257]
[1731850800835,0.221292,90379.0,90374.0,0.0029899]
[1731850800836,0.005,90379.0,90374.0,0.0029899]
[1731850801046,0.002,90406.0,90370.0,0.01257]
[1731850801047,0.16548346,90378.0,90370.0,0.01257]
[1731850801281,0.16548346,90393.0,90375.0,0.00299337]
[1731850801282,0.005,90379.0,90375.0,0.00299337]
[1731850801513,0.005,90379.0,90371.0,0.013827]
[1731850801767,0.010118,90378.0,90376.0,0.00299163]
[1731850801985,0.010118,90378.0,90377.0,0.110647]
[1731850802196,0.010118,90378.0,90377.0,0.13664027]
[1731850802416,0.0101191,90378.0,90377.0,0.18733619]
[1731850802646,0.0101191,90378.0,90377.0,0.29639874]
[1731850802853,0.0101191,90378.0,90377.0,0.30139874]
[1731850803277,0.0101191,90378.0,90377.0,0.29639874]
[1731850804160,0.0101191,90378.0,90377.0,0.02599327]
[1731850804628,0.14262878,90378.0,90377.0,0.00299327]
[1731850804865,0.23482765,90378.0,90377.0,0.00299327]
[1731850805102,0.005,90363.0,90361.0,0.16548346]
[1731850805323,0.1207841,90362.0,90361.0,0.18556941]
[1731850805528,0.0101191,90362.0,90361.0,0.02008595]
[1731850805761,0.03040087,90362.0,90361.0,0.02008595]
[1731850806185,0.06285373,90362.0,90361.0,0.02008595]
[1731850806403,0.0101191,90362.0,90361.0,0.04308595]
[1731850806831,0.0081191,90362.0,90361.0,0.04578154]
[1731850807120,0.0081191,90362.0,90361.0,0.15644854]
[1731850807558,0.005,90380.0,90361.0,0.15644854]
[1731850807559,0.115653,90373.0,90362.0,0.023]
[1731850807801,0.005,90363.0,90362.0,0.0587308]
[1731850808028,0.005,90363.0,90362.0,0.0357308]
[1731850808239,0.005,90363.0,90356.0,0.2]
[1731850808240,0.115667,90361.0,90356.0,0.2]
[1731850808458,0.005,90361.0,90356.0,0.2]
[1731850808673,0.16548346,90371.0,90356.0,0.2]
[1731850808904,0.20906255,90370.0,90356.0,0.2]
[1731850809381,0.110672,90357.0,90356.0,0.2]
[1731850810041,0.13095279,90357.0,90356.0,0.2]
[1731850810292,0.110672,90357.0,90356.0,0.2]
[1731850810507,0.13095279,90357.0,90356.0,0.2]
[1731850810728,0.02028079,90357.0,90356.0,0.25]
[1731850811009,0.24001534,90357.0,90356.0,0.2]
[1731850811215,0.24201534,90357.0,90356.0,0.2]
[1731850811424,0.24001534,90357.0,90356.0,0.2]
[1731850814325,0.110672,90357.0,90356.0,0.2008595]
[1731850814539,0.10906255,90357.0,90356.0,0.26749379]
[1731850814814,0.23173455,90357.0,90356.0,0.2008595]
[1731850815057,0.222679,90351.0,90350.0,0.27786399]
[1731850815286,0.33174155,90351.0,90350.0,0.27786399]
[1731850815519,0.3519825,90351.0,90350.0,0.194823]
[1731850815746,0.3519825,90351.0,90350.0,0.19710045]
[1731850815977,0.3499825,90351.0,90350.0,0.19710045]
[1731850816455,0.3499825,90351.0,90336.0,0.2]
[1731850816456,0.120684,90347.0,90336.0,0.2]
[1731850816681,0.38434767,90347.0,90336.0,0.2]
[1731850817127,0.38234767,90347.0,90336.0,0.2]
[1731850817367,0.39818906,90347.0,90336.0,0.2]
[1731850818338,0.37934767,90347.0,90346.0,0.25137773]
[1731850818805,0.27234767,90347.0,90346.0,0.25137773]
[1731850819023,0.28244745,90347.0,90346.0,0.2]
[1731850819500,0.0627009,90347.0,90346.0,0.2]
[1731850819754,0.02020272,90347.0,90346.0,0.2]
[1731850819990,0.02020272,90347.0,90346.0,0.27351583]
[1731850819991,0.03030408,90347.0,90346.0,0.27351583]
[1731850820220,0.01010136,90347.0,90346.0,0.46660083]
[1731850820472,0.005,90378.0,90346.0,0.46660083]
[1731850820473,0.0202121,90372.0,90348.0,0.221366]
[1731850820716,0.221292,90378.0,90360.0,0.110668]
[1731850821191,0.005,90389.0,90360.0,0.110668]
[1731850821192,0.16548346,90392.0,90360.0,0.13588121]
[1731850821418,0.16548346,90392.0,90360.0,0.133668]
[1731850821652,0.16548346,90370.0,90361.0,0.023]
[1731850821884,0.16548346,90371.0,90370.0,0.133656]
[1731850822131,0.005,90389.0,90371.0,0.0354983]
[1731850822346,0.001719,90382.0,90363.0,0.023]
[1731850822631,0.16548346,90381.0,90373.0,0.221304]
[1731850822854,0.001719,90382.0,90363.0,0.023]
[1731850822855,0.001719,90382.0,90381.0,0.110642]
[1731850823086,0.001719,90382.0,90374.0,0.11065]
[1731850823327,0.001719,90382.0,90365.0,0.023]
[1731850823553,0.001719,90382.0,90381.0,0.110642]
[1731850823778,0.09020246,90391.0,90381.0,0.0824]
[1731850824018,0.16548346,90404.0,90382.0,0.00824]
[1731850824249,0.16548346,90393.0,90392.0,0.110629]
[1731850824463,0.16548346,90404.0,90388.0,0.048]
[1731850824686,0.110619,90401.0,90389.0,0.03023751]
[1731850824904,0.16548346,90404.0,90393.0,0.110627]
[1731850825134,0.221201,90416.0,90393.0,0.023]
[1731850825344,0.16548346,90403.0,90394.0,0.01888645]
[1731850825551,0.221201,90416.0,90388.0,0.048]
[1731850825552,0.16548346,90399.0,90388.0,0.048]
[1731850825795,0.27454601,90415.0,90389.0,0.17332027]
[1731850826003,0.110604,90413.0,90403.0,0.110615]
[1731850826233,0.005,90427.0,90405.0,0.16548346]
[1731850826604,0.16548346,90420.0,90419.0,0.110596]
[1731850826908,0.16548346,90430.0,90420.0,0.0110596]
[1731850827135,0.16548346,90430.0,90426.0,0.110587]
[1731850827346,0.16548346,90437.0,90420.0,0.0110596]
[1731850827553,0.16548346,90437.0,90410.0,0.005]
[1731850827554,0.16548346,90437.0,90416.0,0.005]
[1731850827785,0.16548346,90437.0,90435.0,0.110575]
[1731850827994,0.16548346,90437.0,90418.0,0.023]
[1731850828216,0.16548346,90437.0,90419.0,0.17918972]
[1731850828468,0.0017192,90420.0,90419.0,0.20218972]
[1731850828692,0.16548346,90449.0,90420.0,0.023]
[1731850828922,0.16548346,90449.0,90444.0,0.110565]
[1731850829158,0.16548346,90449.0,90444.0,0.192965]
[1731850829590,0.0017184,90452.0,90444.0,0.192965]
[1731850830551,0.0017184,90452.0,90444.0,0.3272387]
[1731850830768,0.0017184,90452.0,90444.0,0.33002755]
[1731850831012,0.0017184,90452.0,90451.0,0.133557]
[1731850831244,0.0017184,90452.0,90451.0,0.24761955]
[1731850831708,0.0017184,90452.0,90451.0,0.25628906]
[1731850832371,0.16548346,90468.0,90467.0,0.110537]
[1731850832625,0.16548346,90468.0,90467.0,0.29059955]
[1731850832834,0.0017184,90469.0,90468.0,0.110536]
[1731850833046,0.0017184,90469.0,90468.0,0.24259855]
[1731850833257,0.0017184,90469.0,90468.0,0.24616401]
[1731850833469,0.0017184,90469.0,90468.0,0.32115505]
[1731850833692,0.0017184,90469.0,90468.0,0.00356546]
[1731850833920,0.0017184,90469.0,90468.0,0.11410146]
[1731850834167,0.0017184,90469.0,90456.0,0.16548346]
[1731850834656,0.11078095,90469.0,90444.0,0.13801666]
[1731850834896,0.0017184,90469.0,90468.0,0.110536]
[1731850835104,0.0017184,90469.0,90444.0,0.0824]
[1731850835105,0.11078095,90469.0,90444.0,0.0824]
[1731850835337,0.11078095,90469.0,90453.0,0.16548346]
[1731850835338,0.110537,90467.0,90453.0,0.16548346]
[1731850835592,2.0017184,90469.0,90454.0,0.04371995]
[1731850835793,2.0017184,90469.0,90468.0,0.110536]
[1731850836000,2.0017184,90469.0,90468.0,0.1215896]
[1731850836929,2.0017184,90469.0,90468.0,0.12515348]
[1731850838266,2.0017184,90469.0,90468.0,0.11409988]
[1731850838487,2.0017184,90469.0,90468.0,0.00356388]
[1731850838704,1.9247184,90469.0,90468.0,0.110536]
[1731850839383,1.9247184,90469.0,90468.0,0.11408813]